{"text_format":"3","workbook":"xlsx","n_sheets":2,"sheets":["Данные о претенденте","Данные сравнения претендентов"],"not_rendered":{"defined_names":4},"read":"whole","date_system":"1900"}

{"sheet":"Данные о претенденте","index":0,"n_rows":2,"n_cols":13,"rows_kept":2,"merged":[[0,0,0,3]]}
["Данные о претенденте"]
["Фамилия","Имя","Отчество","Желаемая должность","Статус заявления","Почтовый адрес","Домашний телефон","Дополнительный телефон","Адрес электронной почты","Источник заявления","Дата получения резюме","Имя сотрудника по найму","Примечания сотрудника по найму"]

{"sheet":"Данные сравнения претендентов","index":1,"n_rows":59,"n_cols":12,"rows_kept":59,"merged":[[0,0,0,3]]}
["Данные сравнения претендентов"]
["Фамилия","Имя","Отчество","Желаемая должность","Текущий работодатель","Текущая должность","Образование","Текущий визовый статус","Опыт работы по специальности (лет)","Профессиональные навыки","Имя сотрудника по найму","Примечания сотрудника по найму"]
[{"$f":"IF('Данные о претенденте'!A3=\"\",\"\",'Данные о претенденте'!A3)","v":""},{"$f":"IF('Данные о претенденте'!B3=\"\",\"\",'Данные о претенденте'!B3)","v":""},{"$f":"IF('Данные о претенденте'!C3=\"\",\"\",'Данные о претенденте'!C3)","v":""},{"$f":"IF('Данные о претенденте'!D3=\"\",\"\",'Данные о претенденте'!D3)","v":""},{"$nulls":6},{"$f":"IF('Данные о претенденте'!L3=\"\",\"\",'Данные о претенденте'!L3)","v":""},{"$f":"IF('Данные о претенденте'!M3=\"\",\"\",'Данные о претенденте'!M3)","v":""}]
[{"$f":"IF('Данные о претенденте'!A4=\"\",\"\",'Данные о претенденте'!A4)","v":""},{"$f":"IF('Данные о претенденте'!B4=\"\",\"\",'Данные о претенденте'!B4)","v":""},{"$f":"IF('Данные о претенденте'!C4=\"\",\"\",'Данные о претенденте'!C4)","v":""},{"$f":"IF('Данные о претенденте'!D4=\"\",\"\",'Данные о претенденте'!D4)","v":""},{"$nulls":6},{"$f":"IF('Данные о претенденте'!L4=\"\",\"\",'Данные о претенденте'!L4)","v":""},{"$f":"IF('Данные о претенденте'!M4=\"\",\"\",'Данные о претенденте'!M4)","v":""}]
[{"$f":"IF('Данные о претенденте'!A5=\"\",\"\",'Данные о претенденте'!A5)","v":""},{"$f":"IF('Данные о претенденте'!B5=\"\",\"\",'Данные о претенденте'!B5)","v":""},{"$f":"IF('Данные о претенденте'!C5=\"\",\"\",'Данные о претенденте'!C5)","v":""},{"$f":"IF('Данные о претенденте'!D5=\"\",\"\",'Данные о претенденте'!D5)","v":""},{"$nulls":6},{"$f":"IF('Данные о претенденте'!L5=\"\",\"\",'Данные о претенденте'!L5)","v":""},{"$f":"IF('Данные о претенденте'!M5=\"\",\"\",'Данные о претенденте'!M5)","v":""}]
[{"$f":"IF('Данные о претенденте'!A6=\"\",\"\",'Данные о претенденте'!A6)","v":""},{"$f":"IF('Данные о претенденте'!B6=\"\",\"\",'Данные о претенденте'!B6)","v":""},{"$f":"IF('Данные о претенденте'!C6=\"\",\"\",'Данные о претенденте'!C6)","v":""},{"$f":"IF('Данные о претенденте'!D6=\"\",\"\",'Данные о претенденте'!D6)","v":""},{"$nulls":6},{"$f":"IF('Данные о претенденте'!L6=\"\",\"\",'Данные о претенденте'!L6)","v":""},{"$f":"IF('Данные о претенденте'!M6=\"\",\"\",'Данные о претенденте'!M6)","v":""}]
[{"$f":"IF('Данные о претенденте'!A7=\"\",\"\",'Данные о претенденте'!A7)","v":""},{"$f":"IF('Данные о претенденте'!B7=\"\",\"\",'Данные о претенденте'!B7)","v":""},{"$f":"IF('Данные о претенденте'!C7=\"\",\"\",'Данные о претенденте'!C7)","v":""},{"$f":"IF('Данные о претенденте'!D7=\"\",\"\",'Данные о претенденте'!D7)","v":""},{"$nulls":6},{"$f":"IF('Данные о претенденте'!L7=\"\",\"\",'Данные о претенденте'!L7)","v":""},{"$f":"IF('Данные о претенденте'!M7=\"\",\"\",'Данные о претенденте'!M7)","v":""}]
[{"$f":"IF('Данные о претенденте'!A8=\"\",\"\",'Данные о претенденте'!A8)","v":""},{"$f":"IF('Данные о претенденте'!B8=\"\",\"\",'Данные о претенденте'!B8)","v":""},{"$f":"IF('Данные о претенденте'!C8=\"\",\"\",'Данные о претенденте'!C8)","v":""},{"$f":"IF('Данные о претенденте'!D8=\"\",\"\",'Данные о претенденте'!D8)","v":""},{"$nulls":6},{"$f":"IF('Данные о претенденте'!L8=\"\",\"\",'Данные о претенденте'!L8)","v":""},{"$f":"IF('Данные о претенденте'!M8=\"\",\"\",'Данные о претенденте'!M8)","v":""}]
[{"$f":"IF('Данные о претенденте'!A9=\"\",\"\",'Данные о претенденте'!A9)","v":""},{"$f":"IF('Данные о претенденте'!B9=\"\",\"\",'Данные о претенденте'!B9)","v":""},{"$f":"IF('Данные о претенденте'!C9=\"\",\"\",'Данные о претенденте'!C9)","v":""},{"$f":"IF('Данные о претенденте'!D9=\"\",\"\",'Данные о претенденте'!D9)","v":""},{"$nulls":6},{"$f":"IF('Данные о претенденте'!L9=\"\",\"\",'Данные о претенденте'!L9)","v":""},{"$f":"IF('Данные о претенденте'!M9=\"\",\"\",'Данные о претенденте'!M9)","v":""}]
[{"$f":"IF('Данные о претенденте'!A10=\"\",\"\",'Данные о претенденте'!A10)","v":""},{"$f":"IF('Данные о претенденте'!B10=\"\",\"\",'Данные о претенденте'!B10)","v":""},{"$f":"IF('Данные о претенденте'!C10=\"\",\"\",'Данные о претенденте'!C10)","v":""},{"$f":"IF('Данные о претенденте'!D10=\"\",\"\",'Данные о претенденте'!D10)","v":""},{"$nulls":6},{"$f":"IF('Данные о претенденте'!L10=\"\",\"\",'Данные о претенденте'!L10)","v":""},{"$f":"IF('Данные о претенденте'!M10=\"\",\"\",'Данные о претенденте'!M10)","v":""}]
[{"$f":"IF('Данные о претенденте'!A11=\"\",\"\",'Данные о претенденте'!A11)","v":""},{"$f":"IF('Данные о претенденте'!B11=\"\",\"\",'Данные о претенденте'!B11)","v":""},{"$f":"IF('Данные о претенденте'!C11=\"\",\"\",'Данные о претенденте'!C11)","v":""},{"$f":"IF('Данные о претенденте'!D11=\"\",\"\",'Данные о претенденте'!D11)","v":""},{"$nulls":6},{"$f":"IF('Данные о претенденте'!L11=\"\",\"\",'Данные о претенденте'!L11)","v":""},{"$f":"IF('Данные о претенденте'!M11=\"\",\"\",'Данные о претенденте'!M11)","v":""}]
[{"$f":"IF('Данные о претенденте'!A12=\"\",\"\",'Данные о претенденте'!A12)","v":""},{"$f":"IF('Данные о претенденте'!B12=\"\",\"\",'Данные о претенденте'!B12)","v":""},{"$f":"IF('Данные о претенденте'!C12=\"\",\"\",'Данные о претенденте'!C12)","v":""},{"$f":"IF('Данные о претенденте'!D12=\"\",\"\",'Данные о претенденте'!D12)","v":""},{"$nulls":6},{"$f":"IF('Данные о претенденте'!L12=\"\",\"\",'Данные о претенденте'!L12)","v":""},{"$f":"IF('Данные о претенденте'!M12=\"\",\"\",'Данные о претенденте'!M12)","v":""}]
[{"$f":"IF('Данные о претенденте'!A13=\"\",\"\",'Данные о претенденте'!A13)","v":""},{"$f":"IF('Данные о претенденте'!B13=\"\",\"\",'Данные о претенденте'!B13)","v":""},{"$f":"IF('Данные о претенденте'!C13=\"\",\"\",'Данные о претенденте'!C13)","v":""},{"$f":"IF('Данные о претенденте'!D13=\"\",\"\",'Данные о претенденте'!D13)","v":""},{"$nulls":6},{"$f":"IF('Данные о претенденте'!L13=\"\",\"\",'Данные о претенденте'!L13)","v":""},{"$f":"IF('Данные о претенденте'!M13=\"\",\"\",'Данные о претенденте'!M13)","v":""}]
[{"$f":"IF('Данные о претенденте'!A14=\"\",\"\",'Данные о претенденте'!A14)","v":""},{"$f":"IF('Данные о претенденте'!B14=\"\",\"\",'Данные о претенденте'!B14)","v":""},{"$f":"IF('Данные о претенденте'!C14=\"\",\"\",'Данные о претенденте'!C14)","v":""},{"$f":"IF('Данные о претенденте'!D14=\"\",\"\",'Данные о претенденте'!D14)","v":""},{"$nulls":6},{"$f":"IF('Данные о претенденте'!L14=\"\",\"\",'Данные о претенденте'!L14)","v":""},{"$f":"IF('Данные о претенденте'!M14=\"\",\"\",'Данные о претенденте'!M14)","v":""}]
[{"$f":"IF('Данные о претенденте'!A15=\"\",\"\",'Данные о претенденте'!A15)","v":""},{"$f":"IF('Данные о претенденте'!B15=\"\",\"\",'Данные о претенденте'!B15)","v":""},{"$f":"IF('Данные о претенденте'!C15=\"\",\"\",'Данные о претенденте'!C15)","v":""},{"$f":"IF('Данные о претенденте'!D15=\"\",\"\",'Данные о претенденте'!D15)","v":""},{"$nulls":6},{"$f":"IF('Данные о претенденте'!L15=\"\",\"\",'Данные о претенденте'!L15)","v":""},{"$f":"IF('Данные о претенденте'!M15=\"\",\"\",'Данные о претенденте'!M15)","v":""}]
[{"$f":"IF('Данные о претенденте'!A16=\"\",\"\",'Данные о претенденте'!A16)","v":""},{"$f":"IF('Данные о претенденте'!B16=\"\",\"\",'Данные о претенденте'!B16)","v":""},{"$f":"IF('Данные о претенденте'!C16=\"\",\"\",'Данные о претенденте'!C16)","v":""},{"$f":"IF('Данные о претенденте'!D16=\"\",\"\",'Данные о претенденте'!D16)","v":""},{"$nulls":6},{"$f":"IF('Данные о претенденте'!L16=\"\",\"\",'Данные о претенденте'!L16)","v":""},{"$f":"IF('Данные о претенденте'!M16=\"\",\"\",'Данные о претенденте'!M16)","v":""}]
[{"$f":"IF('Данные о претенденте'!A17=\"\",\"\",'Данные о претенденте'!A17)","v":""},{"$f":"IF('Данные о претенденте'!B17=\"\",\"\",'Данные о претенденте'!B17)","v":""},{"$f":"IF('Данные о претенденте'!C17=\"\",\"\",'Данные о претенденте'!C17)","v":""},{"$f":"IF('Данные о претенденте'!D17=\"\",\"\",'Данные о претенденте'!D17)","v":""},{"$nulls":6},{"$f":"IF('Данные о претенденте'!L17=\"\",\"\",'Данные о претенденте'!L17)","v":""},{"$f":"IF('Данные о претенденте'!M17=\"\",\"\",'Данные о претенденте'!M17)","v":""}]
[{"$f":"IF('Данные о претенденте'!A18=\"\",\"\",'Данные о претенденте'!A18)","v":""},{"$f":"IF('Данные о претенденте'!B18=\"\",\"\",'Данные о претенденте'!B18)","v":""},{"$f":"IF('Данные о претенденте'!C18=\"\",\"\",'Данные о претенденте'!C18)","v":""},{"$f":"IF('Данные о претенденте'!D18=\"\",\"\",'Данные о претенденте'!D18)","v":""},{"$nulls":6},{"$f":"IF('Данные о претенденте'!L18=\"\",\"\",'Данные о претенденте'!L18)","v":""},{"$f":"IF('Данные о претенденте'!M18=\"\",\"\",'Данные о претенденте'!M18)","v":""}]
[{"$f":"IF('Данные о претенденте'!A19=\"\",\"\",'Данные о претенденте'!A19)","v":""},{"$f":"IF('Данные о претенденте'!B19=\"\",\"\",'Данные о претенденте'!B19)","v":""},{"$f":"IF('Данные о претенденте'!C19=\"\",\"\",'Данные о претенденте'!C19)","v":""},{"$f":"IF('Данные о претенденте'!D19=\"\",\"\",'Данные о претенденте'!D19)","v":""},{"$nulls":6},{"$f":"IF('Данные о претенденте'!L19=\"\",\"\",'Данные о претенденте'!L19)","v":""},{"$f":"IF('Данные о претенденте'!M19=\"\",\"\",'Данные о претенденте'!M19)","v":""}]
[{"$f":"IF('Данные о претенденте'!A20=\"\",\"\",'Данные о претенденте'!A20)","v":""},{"$f":"IF('Данные о претенденте'!B20=\"\",\"\",'Данные о претенденте'!B20)","v":""},{"$f":"IF('Данные о претенденте'!C20=\"\",\"\",'Данные о претенденте'!C20)","v":""},{"$f":"IF('Данные о претенденте'!D20=\"\",\"\",'Данные о претенденте'!D20)","v":""},{"$nulls":6},{"$f":"IF('Данные о претенденте'!L20=\"\",\"\",'Данные о претенденте'!L20)","v":""},{"$f":"IF('Данные о претенденте'!M20=\"\",\"\",'Данные о претенденте'!M20)","v":""}]
[{"$f":"IF('Данные о претенденте'!A21=\"\",\"\",'Данные о претенденте'!A21)","v":""},{"$f":"IF('Данные о претенденте'!B21=\"\",\"\",'Данные о претенденте'!B21)","v":""},{"$f":"IF('Данные о претенденте'!C21=\"\",\"\",'Данные о претенденте'!C21)","v":""},{"$f":"IF('Данные о претенденте'!D21=\"\",\"\",'Данные о претенденте'!D21)","v":""},{"$nulls":6},{"$f":"IF('Данные о претенденте'!L21=\"\",\"\",'Данные о претенденте'!L21)","v":""},{"$f":"IF('Данные о претенденте'!M21=\"\",\"\",'Данные о претенденте'!M21)","v":""}]
[{"$f":"IF('Данные о претенденте'!A22=\"\",\"\",'Данные о претенденте'!A22)","v":""},{"$f":"IF('Данные о претенденте'!B22=\"\",\"\",'Данные о претенденте'!B22)","v":""},{"$f":"IF('Данные о претенденте'!C22=\"\",\"\",'Данные о претенденте'!C22)","v":""},{"$f":"IF('Данные о претенденте'!D22=\"\",\"\",'Данные о претенденте'!D22)","v":""},{"$nulls":6},{"$f":"IF('Данные о претенденте'!L22=\"\",\"\",'Данные о претенденте'!L22)","v":""},{"$f":"IF('Данные о претенденте'!M22=\"\",\"\",'Данные о претенденте'!M22)","v":""}]
[{"$f":"IF('Данные о претенденте'!A23=\"\",\"\",'Данные о претенденте'!A23)","v":""},{"$f":"IF('Данные о претенденте'!B23=\"\",\"\",'Данные о претенденте'!B23)","v":""},{"$f":"IF('Данные о претенденте'!C23=\"\",\"\",'Данные о претенденте'!C23)","v":""},{"$f":"IF('Данные о претенденте'!D23=\"\",\"\",'Данные о претенденте'!D23)","v":""},{"$nulls":6},{"$f":"IF('Данные о претенденте'!L23=\"\",\"\",'Данные о претенденте'!L23)","v":""},{"$f":"IF('Данные о претенденте'!M23=\"\",\"\",'Данные о претенденте'!M23)","v":""}]
[{"$f":"IF('Данные о претенденте'!A24=\"\",\"\",'Данные о претенденте'!A24)","v":""},{"$f":"IF('Данные о претенденте'!B24=\"\",\"\",'Данные о претенденте'!B24)","v":""},{"$f":"IF('Данные о претенденте'!C24=\"\",\"\",'Данные о претенденте'!C24)","v":""},{"$f":"IF('Данные о претенденте'!D24=\"\",\"\",'Данные о претенденте'!D24)","v":""},{"$nulls":6},{"$f":"IF('Данные о претенденте'!L24=\"\",\"\",'Данные о претенденте'!L24)","v":""},{"$f":"IF('Данные о претенденте'!M24=\"\",\"\",'Данные о претенденте'!M24)","v":""}]
[{"$f":"IF('Данные о претенденте'!A25=\"\",\"\",'Данные о претенденте'!A25)","v":""},{"$f":"IF('Данные о претенденте'!B25=\"\",\"\",'Данные о претенденте'!B25)","v":""},{"$f":"IF('Данные о претенденте'!C25=\"\",\"\",'Данные о претенденте'!C25)","v":""},{"$f":"IF('Данные о претенденте'!D25=\"\",\"\",'Данные о претенденте'!D25)","v":""},{"$nulls":6},{"$f":"IF('Данные о претенденте'!L25=\"\",\"\",'Данные о претенденте'!L25)","v":""},{"$f":"IF('Данные о претенденте'!M25=\"\",\"\",'Данные о претенденте'!M25)","v":""}]
[{"$f":"IF('Данные о претенденте'!A26=\"\",\"\",'Данные о претенденте'!A26)","v":""},{"$f":"IF('Данные о претенденте'!B26=\"\",\"\",'Данные о претенденте'!B26)","v":""},{"$f":"IF('Данные о претенденте'!C26=\"\",\"\",'Данные о претенденте'!C26)","v":""},{"$f":"IF('Данные о претенденте'!D26=\"\",\"\",'Данные о претенденте'!D26)","v":""},{"$nulls":6},{"$f":"IF('Данные о претенденте'!L26=\"\",\"\",'Данные о претенденте'!L26)","v":""},{"$f":"IF('Данные о претенденте'!M26=\"\",\"\",'Данные о претенденте'!M26)","v":""}]
[{"$f":"IF('Данные о претенденте'!A27=\"\",\"\",'Данные о претенденте'!A27)","v":""},{"$f":"IF('Данные о претенденте'!B27=\"\",\"\",'Данные о претенденте'!B27)","v":""},{"$f":"IF('Данные о претенденте'!C27=\"\",\"\",'Данные о претенденте'!C27)","v":""},{"$f":"IF('Данные о претенденте'!D27=\"\",\"\",'Данные о претенденте'!D27)","v":""},{"$nulls":6},{"$f":"IF('Данные о претенденте'!L27=\"\",\"\",'Данные о претенденте'!L27)","v":""},{"$f":"IF('Данные о претенденте'!M27=\"\",\"\",'Данные о претенденте'!M27)","v":""}]
[{"$f":"IF('Данные о претенденте'!A28=\"\",\"\",'Данные о претенденте'!A28)","v":""},{"$f":"IF('Данные о претенденте'!B28=\"\",\"\",'Данные о претенденте'!B28)","v":""},{"$f":"IF('Данные о претенденте'!C28=\"\",\"\",'Данные о претенденте'!C28)","v":""},{"$f":"IF('Данные о претенденте'!D28=\"\",\"\",'Данные о претенденте'!D28)","v":""},{"$nulls":6},{"$f":"IF('Данные о претенденте'!L28=\"\",\"\",'Данные о претенденте'!L28)","v":""},{"$f":"IF('Данные о претенденте'!M28=\"\",\"\",'Данные о претенденте'!M28)","v":""}]
[{"$f":"IF('Данные о претенденте'!A29=\"\",\"\",'Данные о претенденте'!A29)","v":""},{"$f":"IF('Данные о претенденте'!B29=\"\",\"\",'Данные о претенденте'!B29)","v":""},{"$f":"IF('Данные о претенденте'!C29=\"\",\"\",'Данные о претенденте'!C29)","v":""},{"$f":"IF('Данные о претенденте'!D29=\"\",\"\",'Данные о претенденте'!D29)","v":""},{"$nulls":6},{"$f":"IF('Данные о претенденте'!L29=\"\",\"\",'Данные о претенденте'!L29)","v":""},{"$f":"IF('Данные о претенденте'!M29=\"\",\"\",'Данные о претенденте'!M29)","v":""}]
[{"$f":"IF('Данные о претенденте'!A30=\"\",\"\",'Данные о претенденте'!A30)","v":""},{"$f":"IF('Данные о претенденте'!B30=\"\",\"\",'Данные о претенденте'!B30)","v":""},{"$f":"IF('Данные о претенденте'!C30=\"\",\"\",'Данные о претенденте'!C30)","v":""},{"$f":"IF('Данные о претенденте'!D30=\"\",\"\",'Данные о претенденте'!D30)","v":""},{"$nulls":6},{"$f":"IF('Данные о претенденте'!L30=\"\",\"\",'Данные о претенденте'!L30)","v":""},{"$f":"IF('Данные о претенденте'!M30=\"\",\"\",'Данные о претенденте'!M30)","v":""}]
[{"$f":"IF('Данные о претенденте'!A31=\"\",\"\",'Данные о претенденте'!A31)","v":""},{"$f":"IF('Данные о претенденте'!B31=\"\",\"\",'Данные о претенденте'!B31)","v":""},{"$f":"IF('Данные о претенденте'!C31=\"\",\"\",'Данные о претенденте'!C31)","v":""},{"$f":"IF('Данные о претенденте'!D31=\"\",\"\",'Данные о претенденте'!D31)","v":""},{"$nulls":6},{"$f":"IF('Данные о претенденте'!L31=\"\",\"\",'Данные о претенденте'!L31)","v":""},{"$f":"IF('Данные о претенденте'!M31=\"\",\"\",'Данные о претенденте'!M31)","v":""}]
[{"$f":"IF('Данные о претенденте'!A32=\"\",\"\",'Данные о претенденте'!A32)","v":""},{"$f":"IF('Данные о претенденте'!B32=\"\",\"\",'Данные о претенденте'!B32)","v":""},{"$f":"IF('Данные о претенденте'!C32=\"\",\"\",'Данные о претенденте'!C32)","v":""},{"$f":"IF('Данные о претенденте'!D32=\"\",\"\",'Данные о претенденте'!D32)","v":""},{"$nulls":6},{"$f":"IF('Данные о претенденте'!L32=\"\",\"\",'Данные о претенденте'!L32)","v":""},{"$f":"IF('Данные о претенденте'!M32=\"\",\"\",'Данные о претенденте'!M32)","v":""}]
[{"$f":"IF('Данные о претенденте'!A33=\"\",\"\",'Данные о претенденте'!A33)","v":""},{"$f":"IF('Данные о претенденте'!B33=\"\",\"\",'Данные о претенденте'!B33)","v":""},{"$f":"IF('Данные о претенденте'!C33=\"\",\"\",'Данные о претенденте'!C33)","v":""},{"$f":"IF('Данные о претенденте'!D33=\"\",\"\",'Данные о претенденте'!D33)","v":""},{"$nulls":6},{"$f":"IF('Данные о претенденте'!L33=\"\",\"\",'Данные о претенденте'!L33)","v":""},{"$f":"IF('Данные о претенденте'!M33=\"\",\"\",'Данные о претенденте'!M33)","v":""}]
[{"$f":"IF('Данные о претенденте'!A34=\"\",\"\",'Данные о претенденте'!A34)","v":""},{"$f":"IF('Данные о претенденте'!B34=\"\",\"\",'Данные о претенденте'!B34)","v":""},{"$f":"IF('Данные о претенденте'!C34=\"\",\"\",'Данные о претенденте'!C34)","v":""},{"$f":"IF('Данные о претенденте'!D34=\"\",\"\",'Данные о претенденте'!D34)","v":""},{"$nulls":6},{"$f":"IF('Данные о претенденте'!L34=\"\",\"\",'Данные о претенденте'!L34)","v":""},{"$f":"IF('Данные о претенденте'!M34=\"\",\"\",'Данные о претенденте'!M34)","v":""}]
[{"$f":"IF('Данные о претенденте'!A35=\"\",\"\",'Данные о претенденте'!A35)","v":""},{"$f":"IF('Данные о претенденте'!B35=\"\",\"\",'Данные о претенденте'!B35)","v":""},{"$f":"IF('Данные о претенденте'!C35=\"\",\"\",'Данные о претенденте'!C35)","v":""},{"$f":"IF('Данные о претенденте'!D35=\"\",\"\",'Данные о претенденте'!D35)","v":""},{"$nulls":6},{"$f":"IF('Данные о претенденте'!L35=\"\",\"\",'Данные о претенденте'!L35)","v":""},{"$f":"IF('Данные о претенденте'!M35=\"\",\"\",'Данные о претенденте'!M35)","v":""}]
[{"$f":"IF('Данные о претенденте'!A36=\"\",\"\",'Данные о претенденте'!A36)","v":""},{"$f":"IF('Данные о претенденте'!B36=\"\",\"\",'Данные о претенденте'!B36)","v":""},{"$f":"IF('Данные о претенденте'!C36=\"\",\"\",'Данные о претенденте'!C36)","v":""},{"$f":"IF('Данные о претенденте'!D36=\"\",\"\",'Данные о претенденте'!D36)","v":""},{"$nulls":6},{"$f":"IF('Данные о претенденте'!L36=\"\",\"\",'Данные о претенденте'!L36)","v":""},{"$f":"IF('Данные о претенденте'!M36=\"\",\"\",'Данные о претенденте'!M36)","v":""}]
[{"$f":"IF('Данные о претенденте'!A37=\"\",\"\",'Данные о претенденте'!A37)","v":""},{"$f":"IF('Данные о претенденте'!B37=\"\",\"\",'Данные о претенденте'!B37)","v":""},{"$f":"IF('Данные о претенденте'!C37=\"\",\"\",'Данные о претенденте'!C37)","v":""},{"$f":"IF('Данные о претенденте'!D37=\"\",\"\",'Данные о претенденте'!D37)","v":""},{"$nulls":6},{"$f":"IF('Данные о претенденте'!L37=\"\",\"\",'Данные о претенденте'!L37)","v":""},{"$f":"IF('Данные о претенденте'!M37=\"\",\"\",'Данные о претенденте'!M37)","v":""}]
[{"$f":"IF('Данные о претенденте'!A38=\"\",\"\",'Данные о претенденте'!A38)","v":""},{"$f":"IF('Данные о претенденте'!B38=\"\",\"\",'Данные о претенденте'!B38)","v":""},{"$f":"IF('Данные о претенденте'!C38=\"\",\"\",'Данные о претенденте'!C38)","v":""},{"$f":"IF('Данные о претенденте'!D38=\"\",\"\",'Данные о претенденте'!D38)","v":""},{"$nulls":6},{"$f":"IF('Данные о претенденте'!L38=\"\",\"\",'Данные о претенденте'!L38)","v":""},{"$f":"IF('Данные о претенденте'!M38=\"\",\"\",'Данные о претенденте'!M38)","v":""}]
[{"$f":"IF('Данные о претенденте'!A39=\"\",\"\",'Данные о претенденте'!A39)","v":""},{"$f":"IF('Данные о претенденте'!B39=\"\",\"\",'Данные о претенденте'!B39)","v":""},{"$f":"IF('Данные о претенденте'!C39=\"\",\"\",'Данные о претенденте'!C39)","v":""},{"$f":"IF('Данные о претенденте'!D39=\"\",\"\",'Данные о претенденте'!D39)","v":""},{"$nulls":6},{"$f":"IF('Данные о претенденте'!L39=\"\",\"\",'Данные о претенденте'!L39)","v":""},{"$f":"IF('Данные о претенденте'!M39=\"\",\"\",'Данные о претенденте'!M39)","v":""}]
[{"$f":"IF('Данные о претенденте'!A40=\"\",\"\",'Данные о претенденте'!A40)","v":""},{"$f":"IF('Данные о претенденте'!B40=\"\",\"\",'Данные о претенденте'!B40)","v":""},{"$f":"IF('Данные о претенденте'!C40=\"\",\"\",'Данные о претенденте'!C40)","v":""},{"$f":"IF('Данные о претенденте'!D40=\"\",\"\",'Данные о претенденте'!D40)","v":""},{"$nulls":6},{"$f":"IF('Данные о претенденте'!L40=\"\",\"\",'Данные о претенденте'!L40)","v":""},{"$f":"IF('Данные о претенденте'!M40=\"\",\"\",'Данные о претенденте'!M40)","v":""}]
[{"$f":"IF('Данные о претенденте'!A41=\"\",\"\",'Данные о претенденте'!A41)","v":""},{"$f":"IF('Данные о претенденте'!B41=\"\",\"\",'Данные о претенденте'!B41)","v":""},{"$f":"IF('Данные о претенденте'!C41=\"\",\"\",'Данные о претенденте'!C41)","v":""},{"$f":"IF('Данные о претенденте'!D41=\"\",\"\",'Данные о претенденте'!D41)","v":""},{"$nulls":6},{"$f":"IF('Данные о претенденте'!L41=\"\",\"\",'Данные о претенденте'!L41)","v":""},{"$f":"IF('Данные о претенденте'!M41=\"\",\"\",'Данные о претенденте'!M41)","v":""}]
[{"$f":"IF('Данные о претенденте'!A42=\"\",\"\",'Данные о претенденте'!A42)","v":""},{"$f":"IF('Данные о претенденте'!B42=\"\",\"\",'Данные о претенденте'!B42)","v":""},{"$f":"IF('Данные о претенденте'!C42=\"\",\"\",'Данные о претенденте'!C42)","v":""},{"$f":"IF('Данные о претенденте'!D42=\"\",\"\",'Данные о претенденте'!D42)","v":""},{"$nulls":6},{"$f":"IF('Данные о претенденте'!L42=\"\",\"\",'Данные о претенденте'!L42)","v":""},{"$f":"IF('Данные о претенденте'!M42=\"\",\"\",'Данные о претенденте'!M42)","v":""}]
[{"$f":"IF('Данные о претенденте'!A43=\"\",\"\",'Данные о претенденте'!A43)","v":""},{"$f":"IF('Данные о претенденте'!B43=\"\",\"\",'Данные о претенденте'!B43)","v":""},{"$f":"IF('Данные о претенденте'!C43=\"\",\"\",'Данные о претенденте'!C43)","v":""},{"$f":"IF('Данные о претенденте'!D43=\"\",\"\",'Данные о претенденте'!D43)","v":""},{"$nulls":6},{"$f":"IF('Данные о претенденте'!L43=\"\",\"\",'Данные о претенденте'!L43)","v":""},{"$f":"IF('Данные о претенденте'!M43=\"\",\"\",'Данные о претенденте'!M43)","v":""}]
[{"$f":"IF('Данные о претенденте'!A44=\"\",\"\",'Данные о претенденте'!A44)","v":""},{"$f":"IF('Данные о претенденте'!B44=\"\",\"\",'Данные о претенденте'!B44)","v":""},{"$f":"IF('Данные о претенденте'!C44=\"\",\"\",'Данные о претенденте'!C44)","v":""},{"$f":"IF('Данные о претенденте'!D44=\"\",\"\",'Данные о претенденте'!D44)","v":""},{"$nulls":6},{"$f":"IF('Данные о претенденте'!L44=\"\",\"\",'Данные о претенденте'!L44)","v":""},{"$f":"IF('Данные о претенденте'!M44=\"\",\"\",'Данные о претенденте'!M44)","v":""}]
[{"$f":"IF('Данные о претенденте'!A45=\"\",\"\",'Данные о претенденте'!A45)","v":""},{"$f":"IF('Данные о претенденте'!B45=\"\",\"\",'Данные о претенденте'!B45)","v":""},{"$f":"IF('Данные о претенденте'!C45=\"\",\"\",'Данные о претенденте'!C45)","v":""},{"$f":"IF('Данные о претенденте'!D45=\"\",\"\",'Данные о претенденте'!D45)","v":""},{"$nulls":6},{"$f":"IF('Данные о претенденте'!L45=\"\",\"\",'Данные о претенденте'!L45)","v":""},{"$f":"IF('Данные о претенденте'!M45=\"\",\"\",'Данные о претенденте'!M45)","v":""}]
[{"$f":"IF('Данные о претенденте'!A46=\"\",\"\",'Данные о претенденте'!A46)","v":""},{"$f":"IF('Данные о претенденте'!B46=\"\",\"\",'Данные о претенденте'!B46)","v":""},{"$f":"IF('Данные о претенденте'!C46=\"\",\"\",'Данные о претенденте'!C46)","v":""},{"$f":"IF('Данные о претенденте'!D46=\"\",\"\",'Данные о претенденте'!D46)","v":""},{"$nulls":6},{"$f":"IF('Данные о претенденте'!L46=\"\",\"\",'Данные о претенденте'!L46)","v":""},{"$f":"IF('Данные о претенденте'!M46=\"\",\"\",'Данные о претенденте'!M46)","v":""}]
[{"$f":"IF('Данные о претенденте'!A47=\"\",\"\",'Данные о претенденте'!A47)","v":""},{"$f":"IF('Данные о претенденте'!B47=\"\",\"\",'Данные о претенденте'!B47)","v":""},{"$f":"IF('Данные о претенденте'!C47=\"\",\"\",'Данные о претенденте'!C47)","v":""},{"$f":"IF('Данные о претенденте'!D47=\"\",\"\",'Данные о претенденте'!D47)","v":""},{"$nulls":6},{"$f":"IF('Данные о претенденте'!L47=\"\",\"\",'Данные о претенденте'!L47)","v":""},{"$f":"IF('Данные о претенденте'!M47=\"\",\"\",'Данные о претенденте'!M47)","v":""}]
[{"$f":"IF('Данные о претенденте'!A48=\"\",\"\",'Данные о претенденте'!A48)","v":""},{"$f":"IF('Данные о претенденте'!B48=\"\",\"\",'Данные о претенденте'!B48)","v":""},{"$f":"IF('Данные о претенденте'!C48=\"\",\"\",'Данные о претенденте'!C48)","v":""},{"$f":"IF('Данные о претенденте'!D48=\"\",\"\",'Данные о претенденте'!D48)","v":""},{"$nulls":6},{"$f":"IF('Данные о претенденте'!L48=\"\",\"\",'Данные о претенденте'!L48)","v":""},{"$f":"IF('Данные о претенденте'!M48=\"\",\"\",'Данные о претенденте'!M48)","v":""}]
[{"$f":"IF('Данные о претенденте'!A49=\"\",\"\",'Данные о претенденте'!A49)","v":""},{"$f":"IF('Данные о претенденте'!B49=\"\",\"\",'Данные о претенденте'!B49)","v":""},{"$f":"IF('Данные о претенденте'!C49=\"\",\"\",'Данные о претенденте'!C49)","v":""},{"$f":"IF('Данные о претенденте'!D49=\"\",\"\",'Данные о претенденте'!D49)","v":""},{"$nulls":6},{"$f":"IF('Данные о претенденте'!L49=\"\",\"\",'Данные о претенденте'!L49)","v":""},{"$f":"IF('Данные о претенденте'!M49=\"\",\"\",'Данные о претенденте'!M49)","v":""}]
[{"$f":"IF('Данные о претенденте'!A50=\"\",\"\",'Данные о претенденте'!A50)","v":""},{"$f":"IF('Данные о претенденте'!B50=\"\",\"\",'Данные о претенденте'!B50)","v":""},{"$f":"IF('Данные о претенденте'!C50=\"\",\"\",'Данные о претенденте'!C50)","v":""},{"$f":"IF('Данные о претенденте'!D50=\"\",\"\",'Данные о претенденте'!D50)","v":""},{"$nulls":6},{"$f":"IF('Данные о претенденте'!L50=\"\",\"\",'Данные о претенденте'!L50)","v":""},{"$f":"IF('Данные о претенденте'!M50=\"\",\"\",'Данные о претенденте'!M50)","v":""}]
[{"$f":"IF('Данные о претенденте'!A51=\"\",\"\",'Данные о претенденте'!A51)","v":""},{"$f":"IF('Данные о претенденте'!B51=\"\",\"\",'Данные о претенденте'!B51)","v":""},{"$f":"IF('Данные о претенденте'!C51=\"\",\"\",'Данные о претенденте'!C51)","v":""},{"$f":"IF('Данные о претенденте'!D51=\"\",\"\",'Данные о претенденте'!D51)","v":""},{"$nulls":6},{"$f":"IF('Данные о претенденте'!L51=\"\",\"\",'Данные о претенденте'!L51)","v":""},{"$f":"IF('Данные о претенденте'!M51=\"\",\"\",'Данные о претенденте'!M51)","v":""}]
[{"$f":"IF('Данные о претенденте'!A52=\"\",\"\",'Данные о претенденте'!A52)","v":""},{"$f":"IF('Данные о претенденте'!B52=\"\",\"\",'Данные о претенденте'!B52)","v":""},{"$f":"IF('Данные о претенденте'!C52=\"\",\"\",'Данные о претенденте'!C52)","v":""},{"$f":"IF('Данные о претенденте'!D52=\"\",\"\",'Данные о претенденте'!D52)","v":""},{"$nulls":6},{"$f":"IF('Данные о претенденте'!L52=\"\",\"\",'Данные о претенденте'!L52)","v":""},{"$f":"IF('Данные о претенденте'!M52=\"\",\"\",'Данные о претенденте'!M52)","v":""}]
[{"$f":"IF('Данные о претенденте'!A53=\"\",\"\",'Данные о претенденте'!A53)","v":""},{"$f":"IF('Данные о претенденте'!B53=\"\",\"\",'Данные о претенденте'!B53)","v":""},{"$f":"IF('Данные о претенденте'!C53=\"\",\"\",'Данные о претенденте'!C53)","v":""},{"$f":"IF('Данные о претенденте'!D53=\"\",\"\",'Данные о претенденте'!D53)","v":""},{"$nulls":6},{"$f":"IF('Данные о претенденте'!L53=\"\",\"\",'Данные о претенденте'!L53)","v":""},{"$f":"IF('Данные о претенденте'!M53=\"\",\"\",'Данные о претенденте'!M53)","v":""}]
[{"$f":"IF('Данные о претенденте'!A54=\"\",\"\",'Данные о претенденте'!A54)","v":""},{"$f":"IF('Данные о претенденте'!B54=\"\",\"\",'Данные о претенденте'!B54)","v":""},{"$f":"IF('Данные о претенденте'!C54=\"\",\"\",'Данные о претенденте'!C54)","v":""},{"$f":"IF('Данные о претенденте'!D54=\"\",\"\",'Данные о претенденте'!D54)","v":""},{"$nulls":6},{"$f":"IF('Данные о претенденте'!L54=\"\",\"\",'Данные о претенденте'!L54)","v":""},{"$f":"IF('Данные о претенденте'!M54=\"\",\"\",'Данные о претенденте'!M54)","v":""}]
[{"$f":"IF('Данные о претенденте'!A55=\"\",\"\",'Данные о претенденте'!A55)","v":""},{"$f":"IF('Данные о претенденте'!B55=\"\",\"\",'Данные о претенденте'!B55)","v":""},{"$f":"IF('Данные о претенденте'!C55=\"\",\"\",'Данные о претенденте'!C55)","v":""},{"$f":"IF('Данные о претенденте'!D55=\"\",\"\",'Данные о претенденте'!D55)","v":""},{"$nulls":6},{"$f":"IF('Данные о претенденте'!L55=\"\",\"\",'Данные о претенденте'!L55)","v":""},{"$f":"IF('Данные о претенденте'!M55=\"\",\"\",'Данные о претенденте'!M55)","v":""}]
[{"$f":"IF('Данные о претенденте'!A56=\"\",\"\",'Данные о претенденте'!A56)","v":""},{"$f":"IF('Данные о претенденте'!B56=\"\",\"\",'Данные о претенденте'!B56)","v":""},{"$f":"IF('Данные о претенденте'!C56=\"\",\"\",'Данные о претенденте'!C56)","v":""},{"$f":"IF('Данные о претенденте'!D56=\"\",\"\",'Данные о претенденте'!D56)","v":""},{"$nulls":6},{"$f":"IF('Данные о претенденте'!L56=\"\",\"\",'Данные о претенденте'!L56)","v":""},{"$f":"IF('Данные о претенденте'!M56=\"\",\"\",'Данные о претенденте'!M56)","v":""}]
[{"$f":"IF('Данные о претенденте'!A57=\"\",\"\",'Данные о претенденте'!A57)","v":""},{"$f":"IF('Данные о претенденте'!B57=\"\",\"\",'Данные о претенденте'!B57)","v":""},{"$f":"IF('Данные о претенденте'!C57=\"\",\"\",'Данные о претенденте'!C57)","v":""},{"$f":"IF('Данные о претенденте'!D57=\"\",\"\",'Данные о претенденте'!D57)","v":""},{"$nulls":6},{"$f":"IF('Данные о претенденте'!L57=\"\",\"\",'Данные о претенденте'!L57)","v":""},{"$f":"IF('Данные о претенденте'!M57=\"\",\"\",'Данные о претенденте'!M57)","v":""}]
[{"$f":"IF('Данные о претенденте'!A58=\"\",\"\",'Данные о претенденте'!A58)","v":""},{"$f":"IF('Данные о претенденте'!B58=\"\",\"\",'Данные о претенденте'!B58)","v":""},{"$f":"IF('Данные о претенденте'!C58=\"\",\"\",'Данные о претенденте'!C58)","v":""},{"$f":"IF('Данные о претенденте'!D58=\"\",\"\",'Данные о претенденте'!D58)","v":""},{"$nulls":6},{"$f":"IF('Данные о претенденте'!L58=\"\",\"\",'Данные о претенденте'!L58)","v":""},{"$f":"IF('Данные о претенденте'!M58=\"\",\"\",'Данные о претенденте'!M58)","v":""}]
[{"$f":"IF('Данные о претенденте'!A59=\"\",\"\",'Данные о претенденте'!A59)","v":""},{"$f":"IF('Данные о претенденте'!B59=\"\",\"\",'Данные о претенденте'!B59)","v":""},{"$f":"IF('Данные о претенденте'!C59=\"\",\"\",'Данные о претенденте'!C59)","v":""},{"$f":"IF('Данные о претенденте'!D59=\"\",\"\",'Данные о претенденте'!D59)","v":""},{"$nulls":6},{"$f":"IF('Данные о претенденте'!L59=\"\",\"\",'Данные о претенденте'!L59)","v":""},{"$f":"IF('Данные о претенденте'!M59=\"\",\"\",'Данные о претенденте'!M59)","v":""}]